[Event "FRA-ch Teams Top 16-B 2022"]
[Site "Chartres"]
[Date "2022.06.11"]
[Round "3.12"]
[White "Brunner, Nicolas"]
[Black "Godart, Francois"]
[Result "1/2-1/2"]
[ECO "D31"]
[WhiteElo "2454"]
[BlackElo "2399"]
[Annotator "TA"]
[PlyCount "78"]
[EventDate "2022.06.09"]
[EventType "team-tourn"]
[EventCountry "FRA"]
[SourceTitle "playchess.com"]
[Source "ChessBase"]
[SourceQuality "1"]
[TimeControl "40/5400+30:1800+30"]

{[%evp 17,78,2,20,6,10,6,8,13,16,0,4,8,10,18,15,15,13,11,4,0,0,0,0,0,0,0,0,0,0,-9,0,-4,-14,-14,-1,-89,8,8,9,9,0,0,86,87,89,69,70,0,27,0,56,0,0,0,0,0,0,0,0,0,0,0,0]} 1. d4 {[%emt 0:00:03]} d5 {[%emt 0:00:08]} 2. c4 {[%emt 0:00:05]} e6 {[%emt 0:00:08]} 3. Nc3 {[%emt 0:00:05]} c6 {[%emt 0:00:24]} 4. e4 {[%emt 0:00:13]} dxe4 {[%emt 0:00:05]} 5. Nxe4 {[%emt 0:00:05]} Bb4+ {[%emt 0:00:09]} 6. Bd2 {[%emt 0:00:04][%cal Bc1d2,Bd2b4,Bb4f8,Bf8g7][%mdl 32]} Qxd4 {[%emt 0:00:06]} 7. Bxb4 {[%emt 0:00:04]} Qxe4+ {[%emt 0:00:06]} 8. Ne2 {[%emt 0:00:06]} Na6 {[%emt 0:00:36][%cal Bb8a6,Ba6b4,Bb4d3][%mdl 32]} 9. Bf8 {[%emt 0:00:08]} Ne7 {[%emt 0:00:15]} ({Don't take} 9... Qe5 10. Qd2 $1 Qf6 11. Bd6 $14) 10. Bxg7 {[%emt 0:00:08] D31: Queen's Gambit Declined: Semi-Slav without ...Nf6 (+ Marshall Gambit and Noteboom) and Exchange Variation lines without ...Nf6.} Nb4 {[%emt 0:00:41] White must now prevent ...Rg8.} 11. Qd6 {[%emt 0:00:25]} Nd3+ {[%emt 0:00:27]} 12. Kd2 {[%emt 0:00:09][%cal Be1d2,Bd2d3,Bd3c3][%mdl 32]} Nf5 {[%emt 0:00:12]} 13. Qxd3 {[%emt 0:00:05] Really sharp!} Qxd3+ {[%emt 0:00:04]} 14. Kxd3 {[%emt 0:00:09]} Nxg7 {[%emt 0:00:03]} 15. Kc3 {[%emt 0:00:31]} c5 {[%emt 0:03:07]} 16. g3 {[%emt 0:07:27]} b6 {[%emt 0:05:58]} 17. Bg2 {[%emt 0:00:20] Inhibits Bb7.} Rb8 {[%emt 0:00:06] [#]} 18. Rad1 $146 {[%emt 0:06:04]} ({Predecessor:} 18. Nf4 Bb7 19. Bxb7 Rxb7 20. Rhe1 Kd7 21. Rad1+ Kc8 22. a3 Rd8 23. Rxd8+ Kxd8 24. g4 {½-½ (55) Navara,D (2739)-Flear,G (2439) Chartres 2017}) 18... Bb7 {[%emt 0:01:57]} 19. Bxb7 {[%emt 0:00:12]} Rxb7 {[%emt 0:00:04]} 20. h4 {[%emt 0:11:52]} Rd7 {[%emt 0:02:52]} 21. Rxd7 {[%emt 0:00:47]} Kxd7 $11 {[%emt 0:00:04][%mdl 4096] Endgame KRN-KRN} 22. g4 {[%emt 0:25:55]} Ke7 {[%emt 0:14:53]} 23. Ng3 {[%emt 0:07:46]} h5 {[%emt 0:10:27]} 24. f3 {[%emt 0:04:08]} hxg4 {[%emt 0:01:53]} 25. fxg4 {[%emt 0:00:07]} f5 {[%emt 0:00:18]} 26. g5 {[%emt 0:08:51] [#]} (26. gxf5 $1 $11 exf5 27. Kd3) 26... Nh5 {[%emt 0:01:02]} (26... f4 $1 $17 {[%cal Rf4g3]} 27. Ne4 e5) 27. Nxh5 {[%emt 0:00:08]} Rxh5 {[%emt 0:00:05] KR-KR} 28. Kd3 {[%emt 0:00:34]} Kf7 {[%emt 0:20:53]} 29. Ke3 {[%emt 0:00:13]} Kg6 {[%emt 0:03:22]} (29... e5 $1 $11) 30. Kf4 $16 {[%emt 0:00:45]} Rh8 {[%emt 0:00:10]} 31. Ke5 {[%emt 0:01:20]} Rf8 {[%emt 0:02:37]} 32. Rf1 {[%emt 0:07:37]} (32. Kxe6 f4 $11) (32. Rh3 $1 $14) 32... Rd8 {[%emt 0:02:49]} (32... Rh8 $5 {[%cal Rh8h4]}) 33. Rh1 {[%emt 0:08:44]} (33. Kxe6 $5 {[%cal Rf1f5]} Rh8 34. Rh1 $11 (34. Rxf5 Rxh4 35. Rf6+ Kxg5 $11)) 33... Rf8 {[%emt 0:01:44]} 34. b3 {[%emt 0:01:01]} ({Much worse is} 34. Kxe6 f4 $11) (34. Rh3 $1 $14) 34... f4 $11 {[%emt 0:03:59] The position is equal.} 35. Rf1 {[%emt 0:04:19]} f3 {[%emt 0:01:00]} 36. Ke4 {[%emt 0:07:05]} f2 {[%emt 0:00:21]} 37. Ke3 {[%emt 0:00:04]} Rh8 {[%emt 0:00:09]} 38. Rxf2 {[%emt 0:00:06] Hoping for Rf4.} Rxh4 {[%emt 0:00:06]} 39. Rg2 {[%emt 0:01:23]} Rd4 {[%emt 0:10:56] Weighted Error Value: White=0.13 (very precise) /Black=0.17 (very precise)} 1/2-1/2

[Event "FRA-ch Teams Top 16-B 2022"]
[Site "Chartres"]
[Date "2022.06.11"]
[Round "3.13"]
[White "Chabanon, Jean-Luc"]
[Black "Philippe, Christophe"]
[Result "1/2-1/2"]
[ECO "A87"]
[WhiteElo "2432"]
[BlackElo "2379"]
[Annotator "TA"]
[PlyCount "177"]
[EventDate "2022.06.09"]
[EventType "team-tourn"]
[EventCountry "FRA"]
[SourceTitle "playchess.com"]
[Source "ChessBase"]
[SourceQuality "1"]
[TimeControl "40/5400+30:1800+30"]

{[%evp 19,177,19,19,15,18,20,14,30,26,20,35,30,32,29,25,8,25,0,6,8,8,8,7,8,67,67,61,46,46,46,69,67,109,117,122,122,153,63,149,0,153,151,198,198,189,140,137,102,110,2,2,2,2,2,2,2,7,2,2,0,2,-20,-20,-20,-20,-20,-20,-102,-20,-21,-20,-20,-20,-20,0,-20,-20,-20,0,-20,0,-20,0,-20,-20,-122,-35,-41,-35,-35,0,-101,0,-101,-101,-124,-89,-89,-20,-34,-20,-20,-20,-21,-20,-20,-20,-20,-20,-20,-20,-20,-20,-20,-13,-21,-20,-20,-20,-20,-20,-20,-20,-20,-20,-20,0,-93,-20,-93,-28,-28,-28,-108,-106,-106,0,0,0,0,0,0,0,0,0,0,0,0,0,0,0,0,0,0,0,0,0,0,0,0]} 1. d4 {[%emt 0:00:03]} f5 {[%emt 0:00:29]} 2. Nf3 {[%emt 0:04:07]} Nf6 {[%emt 0:00:19]} 3. g3 {[%emt 0:01:50]} g6 {[%emt 0:00:06]} 4. Bg2 {[%emt 0:00:28]} Bg7 {[%emt 0:00:06]} 5. O-O {[%emt 0:00:16]} O-O {[%emt 0:00:09]} 6. c4 {[%emt 0:03:38]} d6 {[%emt 0:00:06]} 7. Nc3 {[%emt 0:00:05]} Qe8 {[%emt 0:00:07]} 8. d5 {[%emt 0:00:53]} Na6 {[%emt 0:00:05]} 9. Nd4 {[%emt 0:02:19]} Bd7 {[%emt 0:00:19]} 10. Rb1 {[%emt 0:03:42]} c5 {[%emt 1:33:44]} 11. Ne6 {[%emt 0:11:01] A87: Dutch Defence: Leningrad System: 5 Nf3.} Bxe6 {[%emt 0:00:00]} 12. dxe6 {[%emt 0:00:07]} Rb8 {[%emt 0:00:00]} 13. Nb5 {[%emt 0:19:46]} Qc8 {[%emt 0:00:00] [#]} 14. Bg5 $146 {[%emt 0:07:55]} ({Predecessor:} 14. Bd5 Nc7 15. Nxd6 exd6 16. e7+ Rf7 17. Bxf7+ Kxf7 18. Bf4 Ne6 19. Qxd6 Nxf4 20. Qxf4 Kxe7 {0-1 (38) Sur,V (1993)-Chashchev,S (2408) Sochi 2012}) 14... Nc7 {[%emt 0:00:00]} 15. Bxf6 {[%emt 0:00:47]} Bxf6 {[%emt 0:00:00]} 16. Nxc7 {[%emt 0:04:20]} Qxc7 {[%emt 0:00:00]} 17. a4 {[%emt 0:03:15]} Kg7 {[%emt 0:00:00]} 18. Bd5 {[%emt 0:02:55]} Qa5 {[%emt 0:00:00]} 19. Qb3 {[%emt 0:05:28]} a6 {[%emt 0:00:00]} 20. Qa3 {[%emt 0:00:50]} Qd2 {[%emt 0:00:00]} 21. e3 {[%emt 0:01:10]} a5 {[%emt 0:00:00]} (21... Rfc8 $11) 22. Qb3 $14 {[%emt 0:03:42]} h5 {[%emt 0:00:00]} 23. h4 {[%emt 0:03:49]} Qb4 {[%emt 0:00:00]} 24. Qc2 {[%emt 0:00:13]} Ra8 {[%emt 0:00:00]} 25. Rfd1 {[%emt 0:00:47]} Ra6 {[%emt 0:00:00]} 26. Rd3 {[%emt 0:02:37]} Rb6 {[%emt 0:00:00]} 27. Kg2 {[%emt 0:01:48]} Be5 {[%emt 0:00:00]} (27... Bxb2 $2 28. Rd2 Qc3 29. Rxb2 $18) 28. Bf3 {[%emt 0:03:41]} (28. b3 $16) 28... Rf6 {[%emt 0:00:00]} (28... Bxb2 $2 29. Rd2 Rb8 30. Rxb2 $18) (28... Kf6 $1 $14) 29. Bd5 {[%emt 0:02:44]} Rf8 {[%emt 0:00:00]} 30. Kh3 {[%emt 0:01:34]} Bf6 {[%emt 0:00:00]} (30... Bxb2 $2 31. Kg2) (30... Ra6 $16 {is a better defense.}) 31. b3 $18 {[%emt 0:01:24]} Ra6 {[%emt 0:00:00]} 32. f4 {[%emt 0:01:56]} (32. e4 $18) 32... Raa8 {[%emt 0:00:00]} 33. Qg2 {[%emt 0:00:46]} Rab8 {[%emt 0:00:00]} 34. e4 {[%emt 0:01:04]} ({White should play} 34. Bf3 $16) 34... Bd4 $11 {[%emt 0:00:00]} 35. Qe2 {[%emt 0:00:33] exf5 is the strong threat.} Rh8 {[%emt 0:01:06]} 36. Rf1 {[%emt 0:00:58]} Rbf8 {[%emt 0:00:50]} 37. Rfd1 {[%emt 0:00:47][%cal Bf1d1,Bd1d4,Bd4e4,Be4e3,Be3d3][%mdl 32]} Qb6 {[%emt 0:02:37]} 38. Qg2 {[%emt 0:01:25]} Rf6 {[%emt 0:01:48]} 39. Qe2 {[%emt 0:01:12]} Qc7 {[%emt 0:03:19]} 40. Rxd4 {[%emt 0:01:59]} (40. R3d2 {is more complex.} Bc3 41. Rc2 Bd4 42. Ra2) 40... cxd4 {[%emt 0:00:05]} 41. Rxd4 {[%emt 0:30:47]} fxe4 {[%emt 0:33:16]} 42. Rxe4 {[%emt 0:00:30]} Qc5 {[%emt 0:00:00]} 43. Qe3 {[%emt 0:00:00]} (43. Qd3 $11) 43... b6 {[%emt 0:00:00]} (43... Qxe3 $17 44. Rxe3 b6) 44. Qe2 {[%emt 0:00:00]} Rhf8 {[%emt 0:00:00]} 45. Re3 {[%emt 0:00:00]} Qd4 {[%emt 0:00:00]} 46. Rd3 {[%emt 0:00:00]} Qc5 {[%emt 0:00:00]} 47. Qd2 {[%emt 0:00:00]} Kh7 {[%emt 0:00:00]} 48. Re3 {[%emt 0:00:00]} Kg7 {[%emt 0:00:00]} 49. Re1 {[%emt 0:00:00]} Kh7 {[%emt 0:00:00]} 50. Rb1 {[%emt 0:00:00]} Rf5 {[%emt 0:00:00]} 51. Rb2 {[%emt 0:00:00]} Qg1 {[%emt 0:00:00]} 52. Qf2 {[%emt 0:00:00]} (52. Qd3 $11) 52... Qc1 {[%emt 0:00:00]} (52... Qxf2 $1 $17 53. Rxf2 Re5) 53. Rc2 {[%emt 0:00:00]} Qb1 {[%emt 0:00:00]} 54. Rb2 $1 {[%emt 0:00:00]} Qc1 {[%emt 0:00:00][%cal Of5d5]} (54... Qd3 $5 {[%cal Rf5f4]} 55. Kg2 Qc3 $15) 55. Qd2 {[%emt 0:01:16]} (55. Rc2 $11 Qd1 56. Kh2) 55... Qg1 {[%emt 0:00:00]} (55... Qxd2 $1 $17 56. Rxd2 Kg7) 56. Qg2 {[%emt 0:00:44]} (56. Qf2 $11 Qxf2 57. Rxf2) 56... Qe3 $17 {[%emt 0:00:24]} 57. Qf3 {[%emt 0:00:52]} Qc1 {[%emt 0:00:48]} 58. Rf2 {[%emt 0:00:25] [#]} Kg7 {[%emt 0:04:14]} (58... Re5 $1 $17 {And now ...Re3 would win.} 59. Rf1 Re1 60. Rxe1 Qxe1) 59. Qd3 {[%emt 0:00:35]} Qa1 {[%emt 0:01:29]} 60. Rf1 {[%emt 0:00:36]} Qb2 {[%emt 0:00:26]} 61. Rf3 {[%emt 0:00:49]} Kh6 {[%emt 0:01:18]} 62. Be4 {[%emt 0:00:25]} R5f6 {[%emt 0:00:25]} 63. Qe3 {[%emt 0:00:36]} Kg7 {[%emt 0:00:35]} 64. Bd5 {[%emt 0:00:30] Dancing on a razor blade.} Qb1 {[%emt 0:00:33][%cal Rb1h1]} 65. Kg2 {[%emt 0:00:21] Inhibits Qh1+.} Rb8 $1 $40 {[%emt 0:02:00][%mdl 128] White needs to defend precisely.} 66. Qc3 {[%emt 0:00:37]} Kh7 {[%emt 0:00:24]} 67. Rf1 {[%emt 0:00:22] Active counter play!} Qa2+ {[%emt 0:00:37]} 68. Rf2 {[%emt 0:00:04]} Qa3 {[%emt 0:00:26]} 69. Qd3 {[%emt 0:00:28]} Rbf8 {[%emt 0:00:18]} 70. Re2 {[%emt 0:00:30]} Qc5 {[%emt 0:00:19]} 71. Bf3 {[%emt 0:00:49]} Kg7 {[%emt 0:00:17]} 72. Re4 {[%emt 0:00:09]} Kh7 {[%emt 0:00:55]} 73. Qe3 {[%emt 0:01:46] [#]} (73. Re2 $11 {remains equal.}) 73... Rf5 {[%emt 0:00:21]} (73... Qxe3 $1 $17 74. Rxe3 Rc8) 74. Kf2 {[%emt 0:01:43]} (74. Rd4 $11) 74... Kg7 {[%emt 0:00:33]} ({Black should try} 74... Qxe3+ $17 75. Kxe3 Rd8) 75. Rd4 $1 $11 {[%emt 0:00:35]} R8f6 {[%emt 0:00:50][%cal Of6e6]} 76. Bd5 {[%emt 0:00:56]} (76. Kg2 $11) 76... Re5 {[%emt 0:00:40]} 77. Qd3 {[%emt 0:01:07]} Rexe6 {[%emt 0:00:56]} ({Better is} 77... Qb4 $17 78. Qd1 Qc3) 78. Bxe6 {[%emt 0:00:07] The position is equal.} Rxe6 $17 {[%emt 0:00:02][%mdl 4096] Endgame KQR-KQR} 79. Kf1 {[%emt 0:00:30]} Qb4 {[%emt 0:00:29] ( -> ...Qe1+)} 80. Re4 {[%emt 0:00:32] Against Qe1+} Rxe4 {[%emt 0:00:12]} 81. Qxe4 {[%emt 0:00:02]} Qxb3 {[%emt 0:00:26] Threatens to win with ...Kf6.} 82. Qxe7+ $11 {[%emt 0:00:08] KQ-KQ} Kh6 {[%emt 0:00:20]} 83. Qf8+ {[%emt 0:02:26]} Kh7 {[%emt 0:00:10]} 84. Qf7+ {[%emt 0:00:37]} Kh6 {[%emt 0:00:11]} 85. Qf8+ {[%emt 0:01:19]} Kh7 {[%emt 0:00:04]} 86. Qe7+ {[%emt 0:00:11]} Kh6 {[%emt 0:00:18] White must now prevent ...Qf3+.} 87. Qg5+ {[%emt 0:00:56]} Kh7 {[%emt 0:00:50]} 88. Qe7+ {[%emt 0:00:07]} Kh6 {[%emt 0:00:07] aiming for ...Qf3+.} 89. Qf8+ {[%emt 0:00:05] Weighted Error Value: White=0.27 (precise) /Black=0.21 (precise)} 1/2-1/2

[Event "FRA-ch Teams Top 16-B 2022"]
[Site "Chartres"]
[Date "2022.06.11"]
[Round "3.14"]
[White "Savina, Anastasia"]
[Black "Dionisi, Thomas"]
[Result "1-0"]
[ECO "E52"]
[WhiteElo "2348"]
[BlackElo "2408"]
[Annotator "TA"]
[PlyCount "87"]
[EventDate "2022.06.09"]
[EventType "team-tourn"]
[EventCountry "FRA"]
[SourceTitle "playchess.com"]
[Source "ChessBase"]
[SourceQuality "1"]
[TimeControl "40/5400+30:1800+30"]

{[%evp 15,86,-8,-8,-2,23,21,20,10,12,12,12,12,13,8,9,18,9,8,51,20,20,33,26,23,48,49,62,0,68,8,8,8,8,16,127,146,165,76,77,72,65,72,99,128,663,661,591,164,240,52,54,30,32,33,33,36,37,29,29,38,51,45,934,914,29988,29989,29991,29992,29992,29993,29993,29994,29999]} 1. d4 {[%emt 0:00:04]} Nf6 {[%emt 0:02:16]} 2. c4 {[%emt 0:00:20]} e6 {[%emt 0:00:08]} 3. Nc3 {[%emt 0:00:12]} Bb4 {[%emt 0:00:06]} 4. e3 {[%emt 0:00:06]} O-O {[%emt 0:00:13]} 5. Bd2 {[%emt 0:00:25]} b6 {[%emt 0:01:06]} 6. Bd3 {[%emt 0:00:31]} Bb7 {[%emt 0:00:10]} 7. Nf3 {[%emt 0:00:14]} d5 {[%emt 0:00:36]} 8. cxd5 $1 {[%emt 0:00:11] 8.cxd5 scores better than 8.0-0.} exd5 {[%emt 0:00:06]} 9. Rc1 {[%emt 0:00:14] E52: Nimzo-Indian: Rubinstein: 4...0-0 5 Nf3 d5 6 Bd3 b6.} a6 {[%emt 0:11:35]} 10. Ne5 {[%emt 0:01:45]} Bd6 {[%emt 0:05:09][%cal Bb4d6,Bd6e7,Be7f6][%mdl 32]} 11. f4 {[%emt 0:00:25] The position is equal.} c5 {[%emt 0:00:11]} 12. O-O {[%emt 0:00:13]} Nc6 {[%emt 0:00:59]} 13. Ng4 {[%emt 0:02:07]} Be7 {[%emt 0:26:17]} 14. Nxf6+ {[%emt 0:01:16]} Bxf6 {[%emt 0:00:01]} 15. dxc5 {[%emt 0:00:33]} (15. Qh5 g6 16. Qf3 Nb4 $15) 15... bxc5 {[%emt 0:01:17]} (15... Nb4 16. Bb1 $16) 16. b3 {[%emt 0:00:44] [#] Threatening Na4.} (16. Qh5 g6 17. Qh3 (17. Qxd5 $2 Bxc3 18. Qxd8 Rfxd8 $19) 17... Re8 $15) 16... d4 $146 {[%emt 0:13:37]} ({Predecessor:} 16... c4 17. bxc4 Nb4 18. Bb1 d4 19. Na4 a5 20. Nc5 Bc6 21. a3 Na6 22. Nxa6 Rxa6 {1-0 (43) Bluebaum,M (2642)-Nagy,G (2507) Germany 2022}) 17. Ne4 {[%emt 0:14:35]} dxe3 {[%emt 0:00:08]} 18. Nxf6+ {[%emt 0:01:47]} Qxf6 {[%emt 0:00:05]} 19. Bxe3 {[%emt 0:00:09]} Rfd8 {[%emt 0:03:47] Threatens to win with ...Nb4.} 20. Bxc5 {[%emt 0:10:38]} Nd4 {[%emt 0:11:32] Against Qf3} 21. Kh1 {[%emt 0:11:27]} ({Better is} 21. Rf2 $14) 21... Rd7 {[%emt 0:10:50]} (21... Ne6 $11) 22. Qh5 {[%emt 0:13:38]} (22. Bb1 $14) 22... g6 $11 {[%emt 0:00:49]} 23. Qh3 {[%emt 0:08:45]} Rad8 {[%emt 0:00:08]} 24. f5 {[%emt 0:06:57] Prevents Ne6.} g5 {[%emt 0:01:30]} (24... Nxf5 $11 {remains equal.} 25. Bxf5 gxf5) 25. Bc4 $16 {[%emt 0:02:32] A strong pair of Bishops.} Nb5 {[%emt 0:04:49] [#]} 26. Rce1 {[%emt 0:14:47]} (26. Bb4 $1 $18) 26... Rd2 {[%emt 0:02:40]} 27. Rf2 {[%emt 0:05:27]} (27. Be7 Rxg2 28. Rf3 (28. Bxf6 $2 {perishes.} Rg3+ 29. Qg2 Rxg2 $19) 28... Qc3 29. Kxg2 (29. Rxc3 $2 Rg3+ 30. Qg2 Rxg2 $19) (29. Bxf7+ Kg7 $17) 29... Qxe1 30. Bxg5 (30. Bxd8 $2 Nd4 $19) 30... Rd1 31. Bxf7+ Kxf7 32. Qxh7+ Ke8 33. Qxb7 Qg1+ 34. Kh3 Qxg5 35. Qc8+ Kf7 36. Qc4+ Kf8 $17) 27... Rxf2 {[%emt 0:03:12]} 28. Bxf2 {[%emt 0:00:02]} Nc3 {[%emt 0:00:38]} 29. Qg4 {[%emt 0:04:23] Black must now prevent h4.} Nd5 $2 {[%emt 0:00:31][%mdl 8192]} (29... Rd2 $16 30. Kg1 Bc6) 30. Bd4 $18 {[%emt 0:00:31]} Qh6 {[%emt 0:00:16]} 31. Be5 {[%emt 0:00:29] Inhibits Nf4.} (31. Qe2) 31... Re8 {[%emt 0:00:40]} (31... Nf6 $142 32. Rd1 Nxg4 33. Rxd8+ Qf8 34. Rxf8+ Kxf8) 32. Bxd5 $2 $40 {[%emt 0:00:31][%mdl 128] White attacks.} (32. Re2 $18) 32... Bxd5 $14 {[%emt 0:00:02]} 33. h3 {[%emt 0:00:30] Strongly threatening Kh2.} f6 {[%emt 0:01:02]} 34. Bc3 {[%emt 0:00:18]} Rxe1+ {[%emt 0:00:17]} 35. Bxe1 {[%emt 0:00:01][%mdl 4096] Endgame KQB-KQB} Qf8 $1 {[%emt 0:00:24]} 36. Qd4 {[%emt 0:00:32]} Qd6 {[%emt 0:00:43][%cal Od5g2] ...Bxg2+! is the strong threat.} 37. Bc3 {[%emt 0:00:16]} Qc6 {[%emt 0:00:38]} 38. Kh2 {[%emt 0:01:23]} Bxg2 $2 {[%emt 0:00:29][%mdl 8192]} (38... Kf7 $14) 39. Qd8+ $18 {[%emt 0:00:29]} (39. Qxf6 Qxf6 40. Bxf6 Be4 $14) 39... Kg7 {[%emt 0:00:30]} 40. Qe7+ {[%emt 0:00:30] White mates.} Kh6 {[%emt 0:00:28]} 41. Qf8+ {[%emt 0:04:44]} Kh5 {[%emt 0:00:02]} 42. Qf7+ {[%emt 0:00:09]} Kh6 {[%emt 0:00:11] [#]} 43. Bb4 $1 {[%emt 0:00:21][%cal Rb4f8]} ({Weaker is} 43. Bxf6 Qd6+ 44. Be5 (44. Kxg2 Qd2+ 45. Kh1 Qe1+ 46. Kg2 Qe2+ 47. Kh1 Qe1+ 48. Kg2 Qe2+ 49. Kh1 Qe1+ $11) 44... Qxe5+ $11) 43... g4 {[%emt 0:00:36]} 44. Bd2# {[%emt 0:00:43] Weighted Error Value: White=0.42/Black=0.57} 1-0

[Event "FRA-ch Teams Top 16-B 2022"]
[Site "Chartres"]
[Date "2022.06.11"]
[Round "3.15"]
[White "Brochet, Philippe"]
[Black "Nezar, Mustapha"]
[Result "1/2-1/2"]
[ECO "C42"]
[WhiteElo "2390"]
[BlackElo "2357"]
[Annotator "TA"]
[PlyCount "137"]
[EventDate "2022.06.09"]
[EventType "team-tourn"]
[EventCountry "FRA"]
[SourceTitle "playchess.com"]
[Source "ChessBase"]
[SourceQuality "1"]
[TimeControl "40/5400+30:1800+30"]

{[%evp 16,137,47,41,73,42,38,0,0,-80,0,-7,32,0,-10,-1,0,-7,-5,-10,-13,0,0,-3,-8,-10,0,-16,-15,-13,-2,-10,0,-8,0,0,0,0,0,0,0,0,0,0,0,0,0,0,0,0,0,0,16,11,59,47,72,47,56,69,279,24,24,24,37,0,2796,2387,5128,12827,12828,12828,12832,12834,12837,12835,12835,12828,12829,12827,12832,0,0,0,12829,0,12829,12829,12829,0,12829,0,0,0,12828,12823,5214,0,0,0,648,0,0,0,0,0,0,0,0,0,0,0,0,0,0,0,0,0,0,0,0,0,0,-12850]} 1. e4 {[%emt 0:03:36]} e5 {[%emt 0:00:16]} 2. Nf3 {[%emt 0:06:11]} Nf6 {[%emt 0:00:46]} 3. Nxe5 {[%emt 0:00:12]} d6 {[%emt 0:00:18]} 4. Nf3 {[%emt 0:00:52]} Nxe4 {[%emt 0:00:10]} 5. d4 {[%emt 0:00:10]} d5 {[%emt 0:01:52]} 6. Bd3 {[%emt 0:05:02]} Be7 {[%emt 0:04:05]} 7. O-O {[%emt 0:01:25]} Nd6 {[%emt 0:04:15] 7...Bf5 is the modern continuation.} 8. Bf4 {[%emt 0:03:14]} O-O {[%emt 0:00:44]} 9. Re1 {[%emt 0:00:19]} Be6 {[%emt 0:06:32] [#] C42: Petroff Defence: 3 Nxe5 and unusual White 3rd moves.} 10. Qd2 $146 {[%emt 0:11:42] White is more active.} ({Predecessor:} 10. Nbd2 Nd7 11. c3 Re8 12. Qc2 h6 13. Re2 Rc8 14. Rae1 Nf8 15. h3 c6 16. b3 b6 17. Qb2 {½-½ (44) Shahil,D (2369)-Roy,P (2366) Budapest 2022}) 10... Nc6 {[%emt 0:23:15][%cal Od6e4]} 11. Ng5 {[%emt 0:07:29] Inhibits Ne4.} Bf5 {[%emt 0:05:41]} 12. h4 {[%emt 0:12:16]} (12. Bxf5 $11 {keeps the balance.} Nxf5 13. Nf3) 12... Qd7 {[%emt 0:10:43]} ({Black should try} 12... Nxd4 $17 {And now ...h6 would win.} 13. c3 h6 14. cxd4 Bxd3 15. Qxd3 hxg5 16. hxg5 Bxg5) 13. Nc3 $11 {[%emt 0:04:28]} Nc4 {[%emt 0:11:21][%cal Bd6c4,Bc4b2,Bb2d3][%mdl 32]} 14. Bxf5 {[%emt 0:12:35]} (14. Bxc4 $5 dxc4 15. d5 $11) 14... Qxf5 {[%emt 0:01:25]} 15. Qd3 {[%emt 0:00:27]} Qxd3 {[%emt 0:03:42]} 16. cxd3 {[%emt 0:01:01]} Nxb2 {[%emt 0:01:42]} 17. Nxd5 {[%emt 0:14:01] [#]} Nxd3 $1 {[%emt 0:04:29]} 18. Nxe7+ {[%emt 0:01:44]} Nxe7 {[%emt 0:00:14]} 19. Rxe7 {[%emt 0:00:12]} Nxf4 {[%emt 0:00:09]} 20. Rxc7 {[%emt 0:00:29]} b6 {[%emt 0:02:28]} 21. a4 {[%emt 0:05:51]} h6 {[%emt 0:03:32]} 22. Nf3 {[%emt 0:00:21]} Rfc8 {[%emt 0:04:40]} 23. Rb7 {[%emt 0:00:11]} Rcb8 {[%emt 0:00:09]} 24. Rxb8+ {[%emt 0:01:49]} Rxb8 {[%emt 0:00:05][%mdl 4096] Endgame KRN-KRN} 25. g3 {[%emt 0:00:07]} Nd5 {[%emt 0:00:24]} 26. Rc1 {[%emt 0:00:18]} Rd8 {[%emt 0:03:51]} 27. Kf1 {[%emt 0:00:56]} h5 {[%emt 0:01:14]} 28. Ke2 {[%emt 0:01:48]} f6 {[%emt 0:00:10]} 29. Nd2 {[%emt 0:01:39]} Re8+ {[%emt 0:01:06]} 30. Kf3 {[%emt 0:00:21]} Kf7 {[%emt 0:00:42]} 31. Nc4 {[%emt 0:00:58] Black must now prevent Nd6+.} Rd8 {[%emt 0:01:15] Prevents Nd6+.} 32. Ne3 {[%emt 0:00:25]} Ke6 {[%emt 0:03:47]} 33. Ke4 {[%emt 0:01:36] Strongly threatening Rc6+.} Nxe3 {[%emt 0:01:10]} 34. fxe3 {[%emt 0:00:01] KR-KR} Kd6 {[%emt 0:00:29]} (34... Re8 $11) 35. Kf5 $14 {[%emt 0:01:06]} Re8 {[%emt 0:00:33]} 36. Rc3 {[%emt 0:01:26]} a6 $1 {[%emt 0:00:20]} 37. Kg6 {[%emt 0:00:32][%csl LRg7,LRh5]} Re4 $2 {[%emt 0:00:46]} (37... b5 $1 $14) 38. Kxh5 $2 {[%emt 0:00:43]} ({Only move:} 38. Kxg7 $18 {Rb3 is the strong threat.} Ke7 39. Kh6) 38... b5 $11 {[%emt 0:00:12]} 39. axb5 {[%emt 0:00:24]} axb5 {[%emt 0:00:04]} 40. g4 {[%emt 0:00:42] Hoping for g5.} (40. Kg6 $5 {[%cal Rg6g7]}) 40... g6+ $2 {[%emt 0:01:13][%mdl 8192]} (40... b4 41. Rb3 $16) (40... Ke6 $11) 41. Kxg6 $18 {[%emt 0:30:18]} Rxg4+ {[%emt 0:30:04]} 42. Kxf6 {[%emt 0:00:00]} Rxh4 {[%emt 0:00:00]} 43. Kf5 {[%emt 0:00:00]} Rh1 {[%emt 0:00:00]} 44. Ke4 {[%emt 0:00:00]} Rd1 {[%emt 0:00:00]} 45. Rc5 {[%emt 0:00:00]} Rb1 {[%emt 0:00:00]} 46. Kd3 {[%emt 0:00:00]} Rb3+ {[%emt 0:00:00]} 47. Kd2 {[%emt 0:00:00]} b4 {[%emt 0:00:00]} 48. Rb5 $2 {[%emt 0:01:18]} ({Better is} 48. Ke2 $18 Rb2+ 49. Kd3 Rb3+ 50. Kd2) 48... Kc6 $1 $11 {[%emt 0:00:00]} 49. Rb8 {[%emt 0:00:15]} Kd5 $2 {[%emt 0:00:00][%mdl 8192] [#]} (49... Kc7 $11 50. Re8 Rc3) 50. Rd8+ $2 {[%emt 0:00:40]} ({Weaker is} 50. Rb5+ Kc6 51. Ra5 Rb2+ 52. Kd3 Rb3+ 53. Ke4 Rb2 $16) (50. Ke2 $1 $18 Rb2+ 51. Kf3) 50... Kc4 $2 {[%emt 0:00:00][%mdl 8192]} (50... Ke4 $11) 51. Rc8+ $18 {[%emt 0:00:03]} Kd5 {[%emt 0:00:00]} 52. Rc5+ {[%emt 0:00:12]} Kd6 $1 {[%emt 0:00:00] [#]} 53. Re5 $2 {[%emt 0:03:10]} (53. Ke2 $1 $18 Rb2+ 54. Kd3 Rb3+ 55. Kd2) 53... Kc6 $11 {[%emt 0:00:00]} 54. Rh5 {[%emt 0:00:01]} Kd6 $2 {[%emt 0:00:00][%mdl 8192]} (54... Rc3 $11) 55. Ke2 {[%emt 0:01:29]} Kc6 {[%emt 0:01:17]} 56. Rh1 $2 {[%emt 0:00:32]} ({White has to play} 56. Rc5+ $18 Kd6 57. e4) 56... Kd5 {[%emt 0:01:54]} 57. Rh5+ $2 {[%emt 0:00:18][%mdl 8192]} (57. e4+ $11 Kxe4 58. Rd1) 57... Kc6 $18 {[%emt 0:00:06]} 58. Rh1 $2 {[%emt 0:00:50]} (58. Rc5+ $18 Kd6 59. e4) 58... Kd5 $11 {[%emt 0:00:07] The position is equal.} 59. Kf3 {[%emt 0:00:29] Threatens to win with Rc1.} ({Don't play} 59. Rh5+ $6 Kc6 $16) 59... Rc3 {[%emt 0:02:02] Against Rc1} 60. Rh5+ {[%emt 0:00:38]} Kc4 {[%emt 0:01:33]} 61. Rc5+ {[%emt 0:00:59]} Kd3 {[%emt 0:00:05]} 62. Rb5 {[%emt 0:00:13]} b3 {[%emt 0:00:39]} 63. Kf4 {[%emt 0:00:40]} Kc2 {[%emt 0:00:33]} 64. d5 {[%emt 0:00:49] aiming for e4.} b2 {[%emt 0:01:10]} 65. d6 {[%emt 0:00:50]} Rd3 {[%emt 0:00:46]} 66. Rc5+ {[%emt 0:00:15]} Kd2 {[%emt 0:00:31]} 67. Rb5 {[%emt 0:00:06]} Kc2 {[%emt 0:00:11]} 68. Rc5+ {[%emt 0:00:33]} Kd2 {[%emt 0:00:11]} 69. Ke5 $2 {[%emt 0:01:43][%mdl 40960] What a bad dream for White.  Weighted Error Value: White=1.07/Black=0.20 (precise) . An unexpected result.} (69. Rb5 $11 Kc2) 1/2-1/2